bitfinex/quotes_BTCUSD_20250420
["timestamp","ask_amount","ask_price","bid_price","bid_amount"]
[1745186360609,0.44921538,84801.0,84800.0,0.11006629]
[1745186366108,0.4258225,84801.0,84800.0,0.15806629]
[1745186367043,0.4258225,84801.0,84800.0,0.21500542]
[1745186367445,0.11944791,84801.0,84800.0,0.21500542]
[1745186367825,0.30637459,84822.0,84801.0,0.0452]
[1745186368029,0.11944791,84821.0,84801.0,0.0452]
[1745186369992,0.11944791,84821.0,84811.0,0.0494]
[1745186370840,0.11944791,84821.0,84812.0,0.0487]
[1745186375113,0.11944791,84821.0,84813.0,0.0472]
[1745186375404,0.11944791,84821.0,84812.0,0.0497]
[1745186375405,0.0008426,84855.0,84815.0,0.0472]
[1745186375703,0.11944791,84845.0,84823.0,0.0472]
[1745186375877,0.11944791,84845.0,84825.0,0.0472]
[1745186376963,0.12044791,84845.0,84825.0,0.0472]
[1745186378026,0.11944791,84845.0,84832.0,0.0486]
[1745186378247,0.11444791,84845.0,84832.0,0.0486]
[1745186379287,0.11458289,84845.0,84832.0,0.0486]
[1745186385822,0.11458289,84845.0,84833.0,0.00454777]
[1745186389964,0.11558289,84845.0,84833.0,0.00454777]
[1745186390197,0.11558289,84845.0,84832.0,0.0486]
[1745186397071,0.11558289,84845.0,84833.0,0.09852]
[1745186397255,0.11558289,84845.0,84834.0,0.00454245]
[1745186398818,0.11558289,84845.0,84834.0,0.01604489]
[1745186400689,0.11458289,84845.0,84834.0,0.01604489]
[1745186400866,0.11458289,84845.0,84835.0,0.0472]
[1745186401075,0.11458289,84845.0,84836.0,0.0487]
[1745186401277,0.00013498,84845.0,84837.0,0.0485]
[1745186401473,0.00013498,84845.0,84839.0,0.0485]
[1745186401682,0.00013498,84845.0,84840.0,0.0454]
[1745186401880,0.11958289,84845.0,84840.0,0.0454]
[1745186402452,0.11944791,84844.0,84839.0,0.0485]
[1745186404799,0.11944791,84844.0,84840.0,1.00928]
[1745186405418,0.12044791,84844.0,84840.0,1.00928]
[1745186405881,0.11944791,84843.0,84841.0,0.09852]
[1745186406079,0.11944791,84843.0,84840.0,1.00928]
[1745186406080,0.01454085,84841.0,84840.0,1.00928]
[1745186406285,0.13398876,84841.0,84840.0,1.1078]
[1745186406496,0.13598876,84841.0,84840.0,1.00928]
[1745186406646,0.13598876,84841.0,84840.0,1.1078]
[1745186407062,0.12044791,84841.0,84840.0,1.1078]
[1745186407678,0.12044791,84841.0,84840.0,1.11515314]
[1745186408222,0.12044791,84841.0,84840.0,1.01663314]
[1745186408441,0.12044791,84841.0,84840.0,1.11515314]
[1745186409049,0.13498876,84841.0,84840.0,1.01663314]
[1745186409274,0.18208876,84841.0,84840.0,1.01663314]
[1745186409391,0.18503553,84841.0,84840.0,1.11515314]
[1745186410129,0.18503553,84841.0,84840.0,1.00928]
[1745186410334,0.01454085,84838.0,84834.0,0.00354245]
[1745186410571,0.13398876,84835.0,84834.0,0.00354245]
[1745186410724,0.5721361,84835.0,84834.0,0.10206245]
[1745186411095,0.44974085,84823.0,84822.0,1.00932]
[1745186411318,0.56918876,84823.0,84822.0,1.10784]
[1745186411509,0.57018876,84823.0,84822.0,1.10784]
[1745186414834,0.23018876,84823.0,84822.0,1.10784]
[1745186415083,0.18108876,84823.0,84822.0,1.10784]
[1745186416387,0.18108876,84823.0,84822.0,1.00932]
[1745186416531,0.18108876,84823.0,84822.0,1.10784]
[1745186417341,0.18403624,84823.0,84822.0,1.10784]
[1745186417887,0.52403624,84823.0,84822.0,1.00932]
[1745186418031,0.52108876,84823.0,84822.0,1.00932]
[1745186418232,0.52108876,84823.0,84822.0,1.10784]
[1745186418459,0.56678876,84823.0,84822.0,1.10784]
[1745186418857,0.56778876,84823.0,84822.0,1.00932]
[1745186419122,0.56575876,84823.0,84822.0,1.10788]
[1745186419236,0.56575876,84823.0,84798.0,0.0004212]
[1745186419237,0.0453,84804.0,84798.0,0.0004212]
[1745186419435,0.00294831,84803.0,84801.0,1.1082]
[1745186419692,0.11944791,84802.0,84801.0,1.1082]
[1745186420092,0.12044791,84802.0,84801.0,1.1082]
[1745186420461,0.12058279,84802.0,84801.0,1.1082]
[1745186421203,0.01454085,84801.0,84798.0,0.0004212]
[1745186421401,0.13693707,84801.0,84800.0,1.1086212]
[1745186421555,0.13793707,84801.0,84800.0,1.1086212]
[1745186422825,0.13793707,84801.0,84800.0,1.1087012]
[1745186423204,0.13793707,84801.0,84800.0,1.0101412]
[1745186423411,0.13793707,84801.0,84800.0,1.1087012]
[1745186423987,0.13693707,84801.0,84800.0,1.1087012]
[1745186425395,0.13693707,84801.0,84800.0,1.0101412]
[1745186425624,0.13693707,84801.0,84800.0,1.1087012]
[1745186426830,0.13693707,84801.0,84800.0,1.1105412]
[1745186428452,0.13398876,84801.0,84800.0,1.1105412]
[1745186429218,0.11944791,84801.0,84800.0,1.1115412]
[1745186435450,0.11944791,84801.0,84800.0,1.0101412]
[1745186435651,0.11944791,84801.0,84800.0,1.1105812]
[1745186436739,0.11944791,84801.0,84800.0,1.1115812]
[1745186437997,0.11944791,84801.0,84800.0,1.1105812]
[1745186439187,0.11944791,84801.0,84800.0,1.1115812]
[1745186441133,0.11944791,84801.0,84800.0,1.1105812]
[1745186443610,0.11944791,84801.0,84800.0,1.0101412]
[1745186443835,0.11944791,84801.0,84800.0,1.1105812]
[1745186446330,0.13398876,84801.0,84800.0,1.0101412]
[1745186446745,0.18288876,84801.0,84800.0,1.1105412]
[1745186450528,0.18188876,84801.0,84800.0,1.1105412]
[1745186458380,0.13398876,84801.0,84800.0,1.1105412]
[1745186460640,0.13498876,84801.0,84800.0,1.0101412]
[1745186460842,0.18493687,84801.0,84800.0,1.1103412]
[1745186463094,0.18393687,84801.0,84800.0,1.1103412]
[1745186463804,0.18098876,84801.0,84800.0,1.1103412]
[1745186468437,0.18198876,84801.0,84800.0,1.1103412]
[1745186468870,0.18493701,84801.0,84800.0,1.1103412]
[1745186470274,0.18198876,84801.0,84800.0,1.1103412]
[1745186471273,0.18198876,84801.0,84800.0,1.0101412]
[1745186471458,0.18198876,84801.0,84800.0,1.1103412]
[1745186473086,0.18493701,84801.0,84800.0,1.1103412]
[1745186473604,0.18493701,84801.0,84800.0,1.0101412]
[1745186473836,0.18493701,84801.0,84800.0,1.1103412]
[1745186475706,0.18493701,84801.0,84800.0,0.1006212]
[1745186476777,0.18493701,84801.0,84800.0,0.0004212]
[1745186476933,0.18493701,84801.0,84800.0,0.1006212]
[1745186478295,0.52493701,84801.0,84800.0,0.1006212]
[1745186478438,0.52198876,84801.0,84800.0,0.1006212]
[1745186483329,0.56878876,84801.0,84800.0,0.1006212]
[1745186488324,0.56878876,84801.0,84800.0,0.0004212]
[1745186488526,0.56878876,84801.0,84800.0,0.1003412]
[1745186490235,0.590805,84801.0,84800.0,0.1003412]
[1745186491099,0.589805,84801.0,84800.0,0.1003412]
[1745186491293,0.590805,84801.0,84800.0,0.1003412]
[1745186491869,0.62381536,84801.0,84800.0,0.1003412]
[1745186493148,0.62381536,84801.0,84800.0,0.1303412]
[1745186493906,0.62481536,84801.0,84800.0,0.0304212]
[1745186494118,0.67481536,84801.0,84800.0,0.0304212]
[1745186494327,0.73751215,84792.0,84788.0,0.0004212]
[1745186494530,0.7375205,84789.0,84788.0,0.0004212]
[1745186494727,0.85796841,84789.0,84788.0,0.0004212]
[1745186494936,0.86670749,84789.0,84788.0,0.0004212]
[1745186495255,0.87169453,84789.0,84788.0,0.0004212]
[1745186495470,0.83872373,84789.0,84788.0,0.0004212]
[1745186497125,0.01554085,84787.0,84781.0,0.03]
[1745186497328,0.59605433,84787.0,84781.0,0.03]
[1745186497523,0.644105,84787.0,84781.0,0.03]
[1745186503426,0.55754791,84787.0,84781.0,0.03]
[1745186503616,0.11944791,84787.0,84781.0,0.03]
[1745186503821,0.13693774,84787.0,84781.0,0.03]
[1745186504103,0.12239689,84787.0,84781.0,0.03]
[1745186504732,0.13693774,84787.0,84781.0,0.03]
[1745186504878,0.12239689,84787.0,84781.0,0.03]
[1745186505547,0.13693774,84787.0,84781.0,0.03]
[1745186507353,0.47398876,84787.0,84781.0,0.03]
[1745186517675,0.52268876,84787.0,84781.0,0.03]
[1745186517826,0.52368876,84787.0,84781.0,0.03]
[1745186519863,0.54565647,84787.0,84781.0,0.03]
[1745186520717,0.52368876,84787.0,84781.0,0.03]
[1745186521398,0.54566473,84787.0,84781.0,0.03]
[1745186522283,0.54666473,84787.0,84781.0,0.03]
[1745186522498,0.59666473,84787.0,84781.0,0.03]
[1745186523458,0.62961165,84787.0,84781.0,0.03]
[1745186523966,0.64060134,84787.0,84781.0,0.03]
[1745186524787,0.62961165,84787.0,84781.0,0.03]
[1745186527166,0.45224085,84782.0,84781.0,0.03]
[1745186527368,0.57168876,84782.0,84781.0,0.03]
[1745186527574,0.54266473,84782.0,84781.0,0.03]
[1745186527780,0.48142388,84782.0,84781.0,0.03]
[1745186528047,0.14142388,84782.0,84781.0,0.031]
[1745186528251,0.14142388,84782.0,84781.0,0.03]
[1745186528457,0.2056138,84782.0,84781.0,0.03]
[1745186530087,0.49596473,84782.0,84781.0,0.031]
[1745186530311,0.45944791,84782.0,84781.0,0.031]
[1745186530578,0.47398876,84782.0,84781.0,0.031]
[1745186531016,0.45944791,84782.0,84781.0,0.031]
[1745186531461,0.47398876,84782.0,84781.0,0.031]
[1745186532111,0.47398876,84782.0,84781.0,0.03]
[1745186532486,0.49597823,84782.0,84781.0,0.03]
[1745186532832,0.73287735,84782.0,84781.0,0.03]
[1745186533440,0.49597823,84782.0,84781.0,0.03]
[1745186533663,0.47398876,84782.0,84781.0,0.03]
[1745186534283,0.57108876,84782.0,84781.0,0.03]
[1745186534968,0.59307423,84782.0,84781.0,0.03]
[1745186535818,0.62604508,84782.0,84781.0,0.03]
[1745186536018,0.62704508,84782.0,84781.0,0.03]
[1745186536222,0.67704508,84782.0,84781.0,0.03]
[1745186536416,0.5914678,84772.0,84771.0,0.004]
[1745186536659,0.85701571,84772.0,84771.0,0.004]
[1745186536813,0.91295233,84772.0,84771.0,0.004]
[1745186537379,0.92393137,84772.0,84771.0,0.004]
[1745186537875,0.92393137,84772.0,84771.0,0.00444915]
[1745186538075,0.84098022,84772.0,84771.0,0.00444915]
[1745186538482,0.82999056,84772.0,84771.0,0.00444915]
[1745186540085,0.84096497,84772.0,84771.0,0.00444915]
[1745186540639,0.69138172,84767.0,84753.0,0.0004213]
[1745186540864,0.81082963,84767.0,84753.0,0.0004213]
[1745186541085,0.84477889,84767.0,84753.0,0.0004213]
[1745186541749,0.85380318,84767.0,84753.0,0.0004213]
[1745186542611,0.59151791,84754.0,84753.0,0.0004213]
[1745186542838,0.75706582,84754.0,84753.0,0.0004213]
[1745186542976,0.49596361,84754.0,84753.0,0.0004213]
[1745186543387,0.47398876,84754.0,84753.0,0.0004213]
[1745186543783,0.48550719,84754.0,84753.0,0.0004213]
[1745186544179,0.72148425,84754.0,84753.0,0.0004213]
[1745186546178,0.48550719,84754.0,84753.0,0.0004213]
[1745186546346,0.47398876,84754.0,84753.0,0.0004213]
[1745186546752,0.58283183,84754.0,84753.0,0.0004213]
[1745186546951,0.53573183,84754.0,84753.0,0.0004213]
[1745186548635,0.48583183,84754.0,84753.0,0.0004213]
[1745186548841,0.47398876,84754.0,84753.0,0.0004213]
[1745186549377,0.47398876,84754.0,84753.0,0.0014213]
[1745186549378,0.13105639,84754.0,84753.0,0.0014213]
[1745186549542,0.11944791,84754.0,84753.0,0.0014213]
[1745186550201,0.13398876,84754.0,84753.0,0.0014213]
[1745186550361,0.47693888,84754.0,84753.0,0.0004213]
[1745186550569,0.48556419,84754.0,84753.0,0.0004213]
[1745186550843,0.53546419,84754.0,84753.0,0.0004213]
[1745186551692,0.53746419,84754.0,84753.0,0.0004213]
[1745186551888,0.54841695,84754.0,84753.0,0.0004213]
[1745186552152,0.54741695,84754.0,84753.0,0.0004213]
[1745186552800,0.5693918,84754.0,84753.0,0.0004213]
[1745186555316,0.5683918,84754.0,84753.0,0.0004213]
[1745186555878,0.5683918,84754.0,84731.0,0.00246307]
[1745186555879,0.01454085,84736.0,84731.0,0.00246307]
[1745186556096,0.01179996,84746.0,84731.0,0.00246307]
[1745186556097,0.13398876,84732.0,84731.0,0.00246307]
[1745186556495,0.13398876,84732.0,84731.0,0.00346307]
[1745186557146,0.13443822,84732.0,84731.0,0.00346307]
[1745186561977,0.53160912,84732.0,84731.0,0.00346307]
[1745186563521,0.51706827,84732.0,84731.0,0.00346307]
[1745186563730,0.51706827,84732.0,84731.0,0.05036307]
[1745186563928,0.51706827,84732.0,84731.0,0.00346307]
[1745186564082,0.53160912,84732.0,84731.0,0.00346307]
[1745186565439,0.54256188,84732.0,84731.0,0.00346307]
[1745186565962,0.56453673,84732.0,84731.0,0.00346307]
[1745186569093,0.54999588,84732.0,84731.0,0.00346307]
[1745186569246,0.51706827,84732.0,84731.0,0.00346307]
[1745186571535,0.5280638,84732.0,84731.0,0.00346307]
[1745186573562,0.54260465,84732.0,84731.0,0.00246307]
[1745186573708,0.54260465,84732.0,84731.0,0.00346307]
[1745186573908,0.5645795,84732.0,84731.0,0.00346307]
[1745186574109,0.55003865,84732.0,84731.0,0.00346307]
[1745186574545,0.5280638,84732.0,84731.0,0.00346307]
[1745186574756,0.54260465,84732.0,84731.0,0.00346307]
[1745186575075,0.54260465,84732.0,84731.0,0.11186307]
[1745186575492,0.5280638,84732.0,84731.0,0.15846307]
[1745186575869,0.51706827,84732.0,84731.0,0.15846307]
[1745186576388,0.51706827,84732.0,84731.0,0.11186307]
[1745186576711,0.53160912,84732.0,84731.0,0.11086307]
[1745186576829,0.53160912,84732.0,84731.0,0.11186307]
[1745186577035,0.53160912,84732.0,84731.0,0.11086307]
[1745186577821,0.54260314,84732.0,84731.0,0.11086307]
[1745186578022,0.52806229,84732.0,84731.0,0.11186307]
[1745186578709,0.51706827,84732.0,84731.0,0.11186307]
[1745186582983,0.51706827,84732.0,84731.0,0.11086307]
[1745186583746,0.51706827,84732.0,84731.0,0.11186307]
[1745186584156,0.51706827,84732.0,84731.0,0.11086307]
[1745186584966,0.51706827,84732.0,84731.0,0.11186307]
[1745186586280,0.51706827,84732.0,84731.0,0.20676307]
[1745186586281,0.11989737,84732.0,84731.0,0.20676307]
[1745186587463,0.11989737,84732.0,84731.0,0.16136307]
[1745186588422,0.11989737,84732.0,84731.0,0.11186307]
[1745186591032,0.51706827,84732.0,84731.0,0.11186307]
[1745186591650,0.53160912,84732.0,84731.0,0.11186307]
[1745186591823,0.53160912,84732.0,84731.0,0.11086307]
[1745186597290,0.54260191,84732.0,84731.0,0.11086307]
[1745186598742,0.88260191,84732.0,84731.0,0.11086307]
[1745186598940,1.16854024,84732.0,84731.0,0.11086307]
[1745186599143,1.19054132,84732.0,84731.0,0.11086307]
[1745186599641,0.95450299,84732.0,84731.0,0.11086307]
[1745186600063,0.96225221,84732.0,84731.0,0.11086307]
[1745186600593,0.94025113,84732.0,84731.0,0.11086307]
[1745186601666,0.59150191,84732.0,84731.0,0.11086307]
[1745186602868,0.54260191,84732.0,84731.0,0.11086307]
[1745186603273,0.52806106,84732.0,84731.0,0.11086307]
[1745186603651,0.54260191,84732.0,84731.0,0.11086307]
[1745186603810,0.53160912,84732.0,84731.0,0.11086307]
[1745186616714,0.58120912,84732.0,84731.0,0.11086307]
[1745186625486,0.53160912,84732.0,84731.0,0.11086307]
[1745186629669,0.57810912,84732.0,84731.0,0.00246307]
[1745186629914,0.25059868,84725.0,84719.0,0.0004212]
[1745186630111,0.18048876,84725.0,84719.0,0.0004212]
[1745186630310,0.18343989,84725.0,84719.0,0.0004212]
[1745186635079,0.40916868,84720.0,84719.0,0.0004212]
[1745186635273,0.52861659,84720.0,84719.0,0.0004212]
[1745186636378,0.53725793,84720.0,84719.0,0.0004212]
[1745186638540,0.52861659,84720.0,84719.0,0.0004212]
[1745186642630,0.51407574,84720.0,84719.0,0.0496212]
[1745186650050,0.51407574,84720.0,84719.0,0.0486212]
[1745186652655,0.51407574,84720.0,84719.0,0.1559012]
[1745186653222,0.51407574,84720.0,84719.0,0.1569012]
[1745186670322,0.11944791,84720.0,84719.0,0.4969012]
[1745186670532,0.39462783,84731.0,84719.0,0.2043012]
[1745186670737,0.11944791,84730.0,84719.0,0.2043012]
[1745186670937,0.11944791,84730.0,84719.0,0.2033012]
[1745186671273,0.11944791,84730.0,84719.0,0.2043012]
[1745186675422,0.39462783,84731.0,84720.0,0.14455587]
[1745186675587,0.51407574,84731.0,84720.0,0.14455587]
[1745186675794,0.51407574,84731.0,84720.0,0.14555587]
[1745186676234,0.11944791,84731.0,84720.0,0.14555587]
[1745186676926,0.11144791,84731.0,84720.0,0.14555587]
[1745186677470,0.11144791,84731.0,84721.0,0.0967]
[1745186677866,0.11144791,84731.0,84721.0,0.0977]
[1745186680948,0.00044946,84732.0,84721.0,0.0977]
[1745186683267,0.00044946,84732.0,84721.0,0.0491]
[1745186684718,0.04034946,84741.0,84721.0,0.0491]
[1745186684908,0.11944791,84740.0,84721.0,0.04854946]
[1745186687558,0.0479,84731.0,84721.0,0.00044946]
[1745186687759,0.11944791,84730.0,84721.0,0.00044946]
[1745186687919,0.51407574,84730.0,84721.0,0.00044946]
[1745186689069,0.11944791,84722.0,84721.0,0.00044946]
[1745186689275,0.18448876,84722.0,84721.0,0.00044946]
[1745186689431,0.23318876,84722.0,84721.0,0.00044946]
[1745186693801,0.62781659,84722.0,84721.0,0.00044946]
[1745186695966,0.56377574,84722.0,84721.0,0.00044946]
[1745186698005,0.56277574,84722.0,84721.0,0.00044946]
[1745186702294,0.57831659,84722.0,84721.0,0.00044946]
[1745186704631,0.96741659,84722.0,84721.0,0.00044946]
[1745186708422,0.01454085,84716.0,84715.0,0.0004212]
[1745186708622,0.57929727,84716.0,84715.0,0.0004212]
[1745186708862,0.57734593,84716.0,84715.0,0.0004212]
[1745186714524,0.57734593,84716.0,84690.0,0.000421]
[1745186714525,0.07494597,84709.0,84690.0,0.000421]
[1745186714723,0.18258876,84702.0,84700.0,0.1054]
[1745186716746,0.18258876,84702.0,84697.0,0.1058213]
[1745186719677,0.13398876,84702.0,84697.0,0.1058213]
[1745186720193,0.50878388,84702.0,84697.0,0.1058213]
[1745186720594,0.50878388,84702.0,84701.0,0.1058212]
[1745186725563,0.56972473,84702.0,84701.0,0.1058212]
[1745186727656,0.61562473,84702.0,84701.0,0.1058212]
[1745186728379,0.61662473,84702.0,84701.0,0.1058212]
[1745186728962,0.62760119,84702.0,84701.0,0.1058212]
[1745186733030,0.62760119,84702.0,84701.0,0.0004212]
[1745186735347,0.96760119,84702.0,84701.0,0.0004212]
[1745186735983,0.9895612,84702.0,84701.0,0.0004212]
[1745186736167,0.40345562,84698.0,84697.0,0.0004213]
[1745186736369,0.58367999,84698.0,84697.0,0.0004213]
[1745186736597,0.58467999,84698.0,84697.0,0.0004213]
[1745186738299,0.58367999,84698.0,84697.0,0.0004213]
[1745186739223,0.51933914,84698.0,84697.0,0.0004213]
[1745186739609,0.52290353,84698.0,84697.0,0.0004213]
[1745186743381,0.50836268,84698.0,84697.0,0.0004213]
[1745186746450,0.50836268,84698.0,84697.0,0.1055013]
[1745186746786,0.50836268,84698.0,84697.0,0.12200554]
[1745186748233,0.50836268,84698.0,84697.0,0.16740554]
[1745186750637,0.11944791,84698.0,84697.0,0.16740554]
[1745186753304,0.11944791,84698.0,84697.0,0.16740554]
[1745186756993,0.38891477,84707.0,84698.0,0.0458]
[1745186757188,0.11944791,84706.0,84699.0,0.01528926]
[1745186757391,0.11144791,84706.0,84699.0,0.01528926]
[1745186757608,0.11144791,84706.0,84699.0,0.01628926]
[1745186759371,0.00044919,84722.0,84700.0,0.0912]
[1745186759552,0.11944791,84721.0,84701.0,0.0458]
[1745186759727,0.11944791,84721.0,84701.0,0.06098963]
[1745186760046,0.11944791,84721.0,84701.0,0.06198963]
[1745186760477,0.11944791,84721.0,84701.0,0.40198963]
[1745186760967,0.11944791,84721.0,84701.0,0.40098963]
[1745186762166,0.11944791,84721.0,84702.0,0.0912]
[1745186762389,0.11944791,84721.0,84705.0,0.0458]
[1745186762545,0.11944791,84721.0,84706.0,0.0454]
[1745186762886,0.11944791,84721.0,84712.0,0.0458]
[1745186763068,0.11944791,84721.0,84713.0,0.0494]
[1745186763388,0.11944791,84721.0,84713.0,0.40451407]
[1745186763562,0.11944791,84721.0,84713.0,0.40551407]
[1745186771578,0.11944791,84721.0,84714.0,1.0108]
[1745186771870,0.11944791,84721.0,84715.0,0.11860424]
[1745186772223,0.11944791,84721.0,84715.0,0.11960424]
[1745186777019,0.11944791,84721.0,84715.0,0.11860424]
[1745186778687,0.00044919,84722.0,84715.0,0.11860424]
[1745186778688,0.11944791,84716.0,84715.0,0.01492424]
[1745186779003,0.11944791,84716.0,84715.0,0.11860424]
[1745186779338,0.12044791,84716.0,84715.0,0.11860424]
[1745186779528,0.50936268,84716.0,84715.0,0.11860424]
[1745186779961,0.55736268,84716.0,84715.0,0.11860424]
[1745186780111,0.57190353,84716.0,84715.0,0.11860424]
[1745186790995,0.57090353,84716.0,84715.0,0.11860424]
[1745186791171,0.57190353,84716.0,84715.0,0.11860424]
[1745186795152,0.52290353,84716.0,84715.0,0.11860424]
[1745186797109,0.50836268,84716.0,84715.0,0.11860424]
[1745186803062,0.50836268,84716.0,84715.0,0.10368]
[1745186803362,0.50836268,84716.0,84715.0,0.11629422]
[1745186812640,0.56790353,84716.0,84715.0,0.11629422]
[1745186812790,0.61780353,84716.0,84715.0,0.11629422]
[1745186812968,0.61780353,84716.0,84715.0,0.10368]
[1745186822275,0.56790353,84716.0,84715.0,0.10368]
[1745186823416,0.52290353,84716.0,84715.0,0.10368]
[1745186824279,0.50836268,84716.0,84715.0,0.10368]
[1745186827895,0.57170353,84716.0,84715.0,0.10368]
[1745186828234,0.61920353,84716.0,84715.0,0.10368]
[1745186832954,0.01454085,84711.0,84708.0,0.10184]
[1745186833190,0.13398876,84709.0,84708.0,0.10184]
[1745186836064,0.18378876,84709.0,84708.0,0.10184]
[1745186836426,0.57270353,84709.0,84708.0,0.10184]
[1745186843283,0.57170353,84709.0,84708.0,0.10184]
[1745186845842,0.57270353,84709.0,84708.0,0.10184]
[1745186846680,0.58369419,84709.0,84708.0,0.10184]
[1745186848950,0.58269419,84709.0,84708.0,0.10184]
[1745186853472,0.58269419,84709.0,84697.0,0.0004213]
[1745186853681,0.01454085,84707.0,84703.0,0.10184]
[1745186853826,0.13398876,84704.0,84703.0,0.10184]
[1745186854024,0.52290353,84704.0,84703.0,0.10184]
[1745186854224,0.53389419,84704.0,84703.0,0.10184]
[1745186856118,0.56483466,84704.0,84703.0,0.10184]
[1745186868051,0.89685101,84704.0,84703.0,0.10184]
[1745186869547,0.66073466,84704.0,84703.0,0.10184]
[1745186869769,0.5906697,84700.0,84697.0,0.1004213]
[1745186869973,0.52098876,84698.0,84697.0,0.1004213]
[1745186870173,0.60421183,84698.0,84697.0,0.1004213]
[1745186870616,0.63718757,84698.0,84697.0,0.1004213]
[1745186871339,0.63818757,84698.0,84697.0,0.0317613]
[1745186871492,0.75842672,84697.0,84696.0,0.0004212]
[1745186871678,0.81831529,84697.0,84696.0,0.0004212]
[1745186871879,0.81931529,84697.0,84696.0,0.0004212]
[1745186872172,0.84130037,84697.0,84696.0,0.0004212]
[1745186872701,0.84030037,84697.0,84696.0,0.0004212]
[1745186873851,0.84130037,84697.0,84696.0,0.0004212]
[1745186875578,0.23617491,84683.0,84667.0,0.0004212]
[1745186875778,0.86017213,84682.0,84667.0,0.0004212]
[1745186875983,0.85721933,84682.0,84667.0,0.0004212]
[1745186876159,0.86820999,84682.0,84667.0,0.0004212]
[1745186876363,0.89019507,84682.0,84667.0,0.0004212]
[1745186876541,0.89897859,84682.0,84667.0,0.0004212]
[1745186876947,0.8994275,84682.0,84667.0,0.0004212]
[1745186880859,0.88488665,84682.0,84667.0,0.0004212]
[1745186881014,0.86290157,84682.0,84677.0,0.0464]
[1745186881216,0.87744242,84682.0,84677.0,0.0464]
[1745186881918,0.86645176,84682.0,84677.0,0.0464]
[1745186882117,0.52645176,84682.0,84677.0,0.0464]
[1745186882327,0.50312739,84682.0,84681.0,0.031421]
[1745186882542,0.50312739,84682.0,84681.0,0.04262707]
[1745186882764,0.50312739,84682.0,84681.0,0.08902707]
[1745186893491,0.50312739,84682.0,84681.0,0.04262707]
[1745186894157,0.50312739,84682.0,84681.0,0.04162707]
[1745186913552,0.50312739,84682.0,84681.0,0.04262707]
[1745186923948,0.50312739,84682.0,84681.0,0.04162707]
[1745186934299,0.50312739,84682.0,84681.0,0.14282707]
[1745186942719,0.50312739,84682.0,84681.0,0.14382707]
[1745186942720,0.11989682,84682.0,84681.0,0.14382707]
[1745186943057,0.11989682,84682.0,84681.0,0.18912707]
[1745186945161,0.11989682,84682.0,84681.0,0.14382707]
[1745186945543,0.11989682,84682.0,84681.0,0.14282707]
[1745186951932,0.50312739,84682.0,84681.0,0.14282707]
[1745186962974,0.50312739,84682.0,84681.0,0.131621]
[1745186963302,0.50312739,84682.0,84681.0,0.14167503]
[1745186972505,0.51866824,84682.0,84681.0,0.14167503]
[1745186972732,0.61276824,84682.0,84681.0,0.14167503]
[1745186972981,0.62377446,84682.0,84681.0,0.131621]
[1745186976432,0.62377446,84682.0,84681.0,0.030421]
[1745186976564,0.6326621,84682.0,84681.0,0.131181]
[1745186976974,0.5863621,84682.0,84681.0,0.131181]
[1745186977180,0.5863621,84682.0,84681.0,0.14127232]
[1745186977363,0.5863621,84682.0,84681.0,0.131181]
[1745186977574,0.8700398,84682.0,84681.0,0.14128129]
[1745186977776,0.01454085,84676.0,84674.0,1.01128]
[1745186977998,0.01180958,84677.0,84674.0,1.01128]
[1745186977999,0.18444155,84675.0,84674.0,1.01128]
[1745186978293,0.18444155,84675.0,84674.0,1.11204]
[1745186978488,0.18544155,84675.0,84674.0,1.11204]
[1745186979098,0.19644777,84675.0,84674.0,1.11204]
[1745186984660,0.14599498,84675.0,84674.0,1.11204]
[1745186985480,0.13498876,84675.0,84674.0,1.11204]
[1745186986983,0.48779833,84675.0,84674.0,1.11204]
[1745186987624,0.48779833,84675.0,84674.0,0.10076]
[1745186990361,0.48779833,84675.0,84674.0,0.11092838]
[1745186991205,0.49880455,84675.0,84674.0,0.11092838]
[1745186992109,0.49780455,84675.0,84674.0,0.11092838]
[1745186995738,0.51978146,84675.0,84674.0,0.11092838]
[1745186997253,0.50524061,84675.0,84674.0,0.11192838]
[1745186997431,0.4832637,84675.0,84674.0,0.11192838]
[1745186997832,0.4832637,84675.0,84674.0,0.12399324]
[1745186998485,0.47225748,84675.0,84674.0,0.12399324]
[1745186998914,0.47225748,84675.0,84674.0,0.13580324]
[1745186999120,0.47225748,84675.0,84674.0,0.12373838]
[1745187001628,0.47225748,84675.0,84674.0,0.12273838]
[1745187004663,0.47225748,84675.0,84674.0,0.12373838]
[1745187012957,0.47225748,84675.0,84674.0,0.12273838]
[1745187030251,0.48679833,84675.0,84674.0,0.12273838]
[1745187031588,0.49782247,84675.0,84674.0,0.12273838]
[1745187031800,0.49782247,84675.0,84674.0,0.12885354]
[1745187037079,0.54772247,84675.0,84674.0,0.12885354]
[1745187037485,0.54772247,84675.0,84674.0,0.11868516]
[1745187037723,0.54772247,84675.0,84674.0,0.11257]
[1745187040978,0.54772247,84675.0,84674.0,0.12885354]
[1745187041353,0.59282247,84675.0,84674.0,0.11257]
[1745187045733,0.01454085,84670.0,84668.0,0.0004213]
[1745187045904,0.13694188,84670.0,84669.0,0.100661]
[1745187046111,0.13794188,84670.0,84669.0,0.100661]
[1745187046287,0.14896602,84670.0,84669.0,0.100661]
[1745187047031,0.15795836,84670.0,84669.0,0.100661]
[1745187049005,0.39416953,84670.0,84669.0,0.100661]
[1745187049179,0.39121641,84670.0,84669.0,0.100661]
[1745187049358,0.15500524,84670.0,84669.0,0.100661]
[1745187049561,0.15795817,84670.0,84669.0,0.100661]
[1745187050286,0.15500524,84670.0,84669.0,0.100661]
[1745187050428,0.20665825,84670.0,84669.0,0.100661]
[1745187051576,0.33721172,84664.0,84645.0,1.01152]
[1745187051735,0.13398876,84664.0,84663.0,0.1005012]
[1745187051934,0.13694195,84664.0,84663.0,0.1005012]
[1745187052788,0.45961282,84664.0,84663.0,0.1005012]
[1745187052997,0.45665963,84664.0,84663.0,0.1005012]
[1745187053374,0.69288754,84664.0,84663.0,0.1005012]
[1745187053576,1.03388754,84664.0,84663.0,0.1005012]
[1745187053798,1.13971168,84664.0,84663.0,0.1005012]
[1745187055395,0.90348377,84664.0,84663.0,0.1005012]
[1745187057500,0.01454085,84658.0,84645.0,1.01152]
[1745187057774,0.01454085,84656.0,84652.0,0.10008]
[1745187058006,0.32182867,84659.0,84656.0,0.01181251]
[1745187058496,0.00295321,84658.0,84657.0,0.0166136]
[1745187058689,0.01749406,84658.0,84657.0,0.0166136]
[1745187059026,0.01794269,84658.0,84657.0,0.0166136]
[1745187059640,0.1373906,84658.0,84657.0,0.0166136]
[1745187062067,0.13739076,84658.0,84657.0,0.0166136]
[1745187062394,0.13739076,84658.0,84657.0,0.1224136]
[1745187063352,0.45921943,84658.0,84657.0,0.1224136]
[1745187063695,0.45626606,84658.0,84657.0,0.1224136]
[1745187067427,0.45626606,84658.0,84657.0,0.12978341]